{"text_format":"3","workbook":"xlsx","n_sheets":4,"sheets":["เริ่ม","รายจ่าย","รายได้","สรุปกำไร - ขาดทุน"],"not_rendered":{"charts":1},"read":"whole","date_system":"1900"}

{"sheet":"เริ่ม","index":0,"n_rows":8,"n_cols":2,"rows_kept":8}
[null,"เกี่ยวกับเทมเพลตนี้"]
[null,"ใช้เวิร์กบุ๊กงบประมาณจัดกิจกรรมนี้เพื่อติดตามค่าใช้จ่ายที่เกิดขึ้นและรายได้ที่ได้รับจากกิจกรรม"]
[null,"กรอกชื่อกิจกรรม แล้วใส่รายละเอียดในตารางในเวิร์กชีตค่าใช้จ่ายและเวิร์กชีตรายได้"]
[null,"ค่าใช้จ่ายทั้งหมดและรายได้ทั้งหมดจะถูกคำนวณโดยอัตโนมัติ"]
[null,"สรุปและแผนภูมิของกำไรขาดทุนจะอัปเดตโดยอัตโนมัติในเวิร์กชีตสรุปกำไรขาดทุน"]
[null,"หมายเหตุ: "]
[null,"คำแนะนำเพิ่มเติมจะอยู่ในคอลัมน์ A ในเวิร์กชีตแต่ละแผ่น ข้อความนี้ได้ถูกซ่อนไว้โดยตั้งใจ เมื่อต้องการเอาข้อความออก ให้เลือกคอลัมน์ A แล้วเลือก ลบ เมื่อต้องการยกเลิกการซ่อนข้อความ ให้เลือกคอลัมน์ A แล้วเปลี่ยนสีฟอนต์"]
[null,"เมื่อต้องการเรียนรู้เพิ่มเติมเกี่ยวกับตาราง ให้กด SHIFT แล้วตามด้วย F10 ภายในตาราง แล้วเลือกตัวเลือก ตาราง จากนั้นเลือก ข้อความแสดงแทน"]

{"sheet":"รายจ่าย","index":1,"n_rows":32,"n_cols":8,"rows_kept":32,"merged":[[0,1,0,4],[2,1,3,1]]}
["ใส่ค่าใช้จ่ายโดยประมาณและค่าใช้จ่ายจริงสำหรับแต่ละประเภทในตารางที่สอดคล้องกันในเวิร์กชีตนี้ และชื่อกิจกรรมในเซลล์ D1 เพื่อกำหนดชื่อของเวิร์กชีตนี้และเวิร์กชีตอื่นๆ เอง ชื่อเรื่องของเวิร์กชีตนี้อยู่ในเซลล์ H1 คำแนะนำที่เป็นประโยชน์เกี่ยวกับวิธีใช้เวิร์กชีตนี้อยู่ในเซลล์ในคอลัมน์นี้ คำแนะนำถัดไปอยู่ในเซลล์ A3","งบประมาณจัดกิจกรรมสำหรับชื่อกิจกรรม",{"$nulls":5},"ค่าใช้จ่าย"]
[]
["ป้ายชื่อค่าใช้จ่ายทั้งหมดอยู่ในเซลล์ด้านขวา ป้ายชื่อค่าใช้จ่ายโดยประมาณอยู่ในเซลล์ G3 และค่าใช้จ่ายจริงอยู่ใน H3","ค่าใช้จ่ายทั้งหมด",{"$nulls":4},"ค่าใช้จ่ายโดยประมาณ","ค่าใช้จ่ายจริง"]
["ค่าใช้จ่ายโดยประมาณทั้งหมดในเซลล์ G4 และค่าใช้จ่ายจริงทั้งหมดใน H4 จะถูกคำนวณโดยอัตโนมัติ คำแนะนำถัดไปอยู่ในเซลล์ A6",{"$nulls":5},{"$f":"SUM(C11,C19,C25,C32,G11,G19,G24)","v":{"v":882,"d":"฿882.00"}},{"$f":"SUM(D11,D19,D25,D32,H11,H19,H24)","v":{"v":333,"d":"฿333.00"}}]
[]
["ใส่ค่าใช้จ่ายด้านสถานที่ในตารางโดยเริ่มจากเซลล์ด้านขวา และค่าใช้จ่ายด้านอาหารว่างในตารางโดยเริ่มจากเซลล์ F6 คำแนะนำถัดไปอยู่ในเซลล์ A13","สถานที่","ค่าใช้จ่ายโดยประมาณ","ค่าใช้จ่ายจริง",null,"อาหารว่าง","ค่าใช้จ่ายโดยประมาณ","ค่าใช้จ่ายจริง"]
[null,"ค่าห้องและหอประชุม",{"v":500,"d":"฿500.00"},null,null,"อาหาร"]
[null,"เจ้าหน้าที่ของสถานที่",{"$nulls":3},"เครื่องดื่ม",{"v":20,"d":"฿20.00"}]
[null,"อุปกรณ์",{"$nulls":3},"ผ้าปูโต๊ะ",null,{"v":20,"d":"฿20.00"}]
[null,"โต๊ะและเก้าอี้",{"$nulls":3},"พนักงานและเงินค่าตอบแทน"]
[null,"ผลรวม",{"$f":"SUBTOTAL(109,SiteExpenses[ค่าใช้จ่ายโดยประมาณ])","v":{"v":500,"d":"฿500.00"}},{"$f":"SUBTOTAL(109,SiteExpenses[ค่าใช้จ่ายจริง])","v":{"v":0,"d":"฿0.00"}},null,"ผลรวม",{"$f":"SUBTOTAL(109,RefreshmentsExpenses[ค่าใช้จ่ายโดยประมาณ])","v":{"v":20,"d":"฿20.00"}},{"$f":"SUBTOTAL(109,RefreshmentsExpenses[ค่าใช้จ่ายจริง])","v":{"v":20,"d":"฿20.00"}}]
[]
["ใส่ค่าใช้จ่ายด้านการตกแต่งในตารางโดยเริ่มจากเซลล์ด้านขวา และค่าใช้จ่ายด้านรายการแสดงในตารางโดยเริ่มจากเซลล์ F13 คำแนะนำถัดไปอยู่ในเซลล์ A21","การตกแต่ง","ค่าใช้จ่ายโดยประมาณ","ค่าใช้จ่ายจริง",null,"รายการแสดง","ค่าใช้จ่ายโดยประมาณ","ค่าใช้จ่ายจริง"]
[null,"ดอกไม้",{"v":200,"d":"฿200.00"},{"v":300,"d":"฿300.00"},null,"ผู้แสดง"]
[null,"เทียน",{"$nulls":3},"ลำโพง",{"v":30,"d":"฿30.00"}]
[null,"โคมไฟ",{"$nulls":3},"การเดินทาง"]
[null,"บอลลูน",{"$nulls":3},"โรงแรม"]
[null,"วัสดุกระดาษ",{"$nulls":3},"อื่นๆ"]
[null,"ผลรวม",{"$f":"SUBTOTAL(109,DecorationsExpenses[ค่าใช้จ่ายโดยประมาณ])","v":{"v":200,"d":"฿200.00"}},{"$f":"SUBTOTAL(109,DecorationsExpenses[ค่าใช้จ่ายจริง])","v":{"v":300,"d":"฿300.00"}},null,"ผลรวม",{"$f":"SUBTOTAL(109,ProgramExpenses[ค่าใช้จ่ายโดยประมาณ])","v":{"v":30,"d":"฿30.00"}},{"$f":"SUBTOTAL(109,ProgramExpenses[ค่าใช้จ่ายจริง])","v":{"v":0,"d":"฿0.00"}}]
[]
["ใส่ค่าใช้จ่ายด้านการประชาสัมพันธ์ในตารางโดยเริ่มจากเซลล์ด้านขวา และค่าใช้จ่ายด้านรางวัลในตารางโดยเริ่มจากเซลล์ F21 คำแนะนำถัดไปอยู่ในเซลล์ A27","การประชาสัมพันธ์","ค่าใช้จ่ายโดยประมาณ","ค่าใช้จ่ายจริง",null,"รางวัล","ค่าใช้จ่ายโดยประมาณ","ค่าใช้จ่ายจริง"]
[null,"งานกราฟิก",{"$nulls":3},"สายสะพาย/โล่/ถ้วยรางวัล"]
[null,"การถ่ายสำเนา/การพิมพ์",{"v":20,"d":"฿20.00"},null,null,"ของชำร่วย",{"v":100,"d":"฿100.00"}]
[null,"ค่าไปรษณีย์",{"$nulls":3},"ผลรวม",{"$f":"SUBTOTAL(109,PrizesExpenses[ค่าใช้จ่ายโดยประมาณ])","v":{"v":100,"d":"฿100.00"}},{"$f":"SUBTOTAL(109,PrizesExpenses[ค่าใช้จ่ายจริง])","v":{"v":0,"d":"฿0.00"}}]
[null,"ผลรวม",{"$f":"SUBTOTAL(109,PublicityExpenses[ค่าใช้จ่ายโดยประมาณ])","v":{"v":20,"d":"฿20.00"}},{"$f":"SUBTOTAL(109,PublicityExpenses[ค่าใช้จ่ายจริง])","v":{"v":0,"d":"฿0.00"}}]
[]
["ใส่ค่าใช้จ่ายเบ็ดเตล็ดในตารางโดยเริ่มจากเซลล์ด้านขวา","เบ็ดเตล็ด","ค่าใช้จ่ายโดยประมาณ","ค่าใช้จ่ายจริง"]
[null,"โทรศัพท์",null,{"v":13,"d":"฿13.00"}]
[null,"พาหนะเดินทาง",{"v":12,"d":"฿12.00"}]
[null,"อุปกรณ์เครื่องเขียน"]
[null,"บริการโทรสาร"]
[null,"ผลรวม",{"$f":"SUBTOTAL(109,MiscellaneousExpenses[ค่าใช้จ่ายโดยประมาณ])","v":{"v":12,"d":"฿12.00"}},{"$f":"SUBTOTAL(109,MiscellaneousExpenses[ค่าใช้จ่ายจริง])","v":{"v":13,"d":"฿13.00"}}]

{"sheet":"รายได้","index":2,"n_rows":29,"n_cols":7,"rows_kept":29,"merged":[[0,1,0,3],[2,1,3,1]]}
["ใส่รายได้โดยประมาณและรายได้จริงสำหรับแต่ละประเภทในตารางที่สอดคล้องกันในเวิร์กชีตนี้ ชื่อเรื่องของเวิร์กชีตนี้จะอัปเดตในเซลล์ด้านขวาโดยอัตโนมัติ ชื่อเรื่องอยู่ในเซลล์ G1 คำแนะนำที่เป็นประโยชน์เกี่ยวกับวิธีใช้เวิร์กชีตนี้อยู่ในเซลล์ในคอลัมน์นี้ คำแนะนำถัดไปอยู่ในเซลล์ A3",{"$f":"รายจ่าย!B1","v":"งบประมาณจัดกิจกรรมสำหรับชื่อกิจกรรม"},{"$nulls":4},"รายได้"]
[]
["ป้ายชื่อรายได้ทั้งหมดอยู่ในเซลล์ด้านขวา ป้ายชื่อรายได้โดยประมาณอยู่ในเซลล์ F3 และรายได้จริงอยู่ใน G3","รายได้ทั้งหมด",{"$nulls":3},"โดยประมาณ","ตามที่เป็นจริง"]
["รายได้โดยประมาณทั้งหมดจะถูกคำนวณโดยอัตโนมัติในเซลล์ F4 และรายได้จริงทั้งหมดใน G4",{"$nulls":4},{"$f":"SUM(การเข้าร่วมงาน[[#Totals],[รายได้โดยประมาณ]],AdsInProgram[[#Totals],[รายได้โดยประมาณ]],ExhibitorsAndVendors[[#Totals],[รายได้โดยประมาณ]],SaleOfItems[[#Totals],[รายได้โดยประมาณ]])","v":{"v":1936,"d":"฿1,936.00"}},{"$f":"SUM(การเข้าร่วมงาน[[#Totals],[รายได้จริง]],AdsInProgram[[#Totals],[รายได้จริง]],ExhibitorsAndVendors[[#Totals],[รายได้จริง]],SaleOfItems[[#Totals],[รายได้จริง]])","v":{"v":1831,"d":"฿1,831.00"}}]
["ป้ายชื่อค่าธรรมเนียมในการเข้าอยู่ในเซลล์ด้านขวา","ค่าธรรมเนียมในการเข้า"]
["ใส่จำนวนค่าธรรมเนียมในการเข้าโดยประมาณและค่าเข้างานจริงพร้อมราคาตั๋วในตารางโดยเริ่มจากเซลล์ด้านขวา รายได้โดยประมาณและรายได้จริงจากค่าธรรมเนียมในการเข้าจะคำนวณโดยอัตโนมัติ คำแนะนำถัดไปอยู่ในเซลล์ A11","จำนวนโดยประมาณ","จำนวนจริง","ประเภท","ราคา","รายได้โดยประมาณ","รายได้จริง"]
[null,300,278,"ผู้ใหญ่ @",{"v":5,"d":"฿5.00"},{"$f":"B7*E7","v":{"v":1500,"d":"฿1,500.00"}},{"$f":"C7*E7","v":{"v":1390,"d":"฿1,390.00"}}]
[null,197,195,"เด็ก @",{"v":2,"d":"฿2.00"},{"$f":"B8*E8","v":{"v":394,"d":"฿394.00"}},{"$f":"C8*E8","v":{"v":390,"d":"฿390.00"}}]
[null,42,51,"อื่นๆ @",{"v":1,"d":"฿1.00"},{"$f":"B9*E9","v":{"v":42,"d":"฿42.00"}},{"$f":"C9*E9","v":{"v":51,"d":"฿51.00"}}]
[null,"ผลรวม",{"$nulls":3},{"$f":"SUBTOTAL(109,การเข้าร่วมงาน[รายได้โดยประมาณ])","v":{"v":1936,"d":"฿1,936.00"}},{"$f":"SUBTOTAL(109,การเข้าร่วมงาน[รายได้จริง])","v":{"v":1831,"d":"฿1,831.00"}}]
["ป้ายชื่อโฆษณาในรายการแสดงอยู่ในเซลล์ด้านขวา","โฆษณาในรายการแสดง"]
["ใส่จำนวนโฆษณาโดยประมาณและจำนวนโฆษณาจริงในรายการแสดงและราคาโฆษณาในตารางโดยเริ่มจากเซลล์ด้านขวา รายได้โดยประมาณและรายได้จริงจากโฆษณาจะคำนวณโดยอัตโนมัติ คำแนะนำถัดไปจะอยู่ในเซลล์ A17","จำนวนโดยประมาณ","จำนวนจริง","ประเภท","ราคา","รายได้โดยประมาณ","รายได้จริง"]
[null,12,null,"ใบประหน้า @",null,{"$f":"B13*E13","v":{"v":0,"d":"฿0.00"}},{"$f":"C13*E13","v":{"v":0,"d":"฿0.00"}}]
[null,null,158,"ครึ่งหน้า @",null,{"$f":"B14*E14","v":{"v":0,"d":"฿0.00"}},{"$f":"C14*E14","v":{"v":0,"d":"฿0.00"}}]
[null,4,null,"1/4 หน้า @",null,{"$f":"B15*E15","v":{"v":0,"d":"฿0.00"}},{"$f":"C15*E15","v":{"v":0,"d":"฿0.00"}}]
[null,"ผลรวม",{"$nulls":3},{"$f":"SUBTOTAL(109,AdsInProgram[รายได้โดยประมาณ])","v":{"v":0,"d":"฿0.00"}},{"$f":"SUBTOTAL(109,AdsInProgram[รายได้จริง])","v":{"v":0,"d":"฿0.00"}}]
["ป้ายชื่อผู้จัดแสดงนิทรรศการหรือผู้จัดจำหน่ายอยู่ในเซลล์ด้านขวา","ผู้จัดแสดงนิทรรศการ/ผู้จัดจำหน่าย"]
["ใส่จำนวนผู้จัดแสดงนิทรรศการและผู้จัดจำหน่ายโดยประมาณและจำนวนจริง และราคาบูธในตารางโดยเริ่มจากเซลล์ด้านขวา รายได้โดยประมาณและรายได้จริงจะคำนวณโดยอัตโนมัติ คำแนะนำถัดไปอยู่ในเซลล์ A23","จำนวนโดยประมาณ","จำนวนจริง","ประเภท","ราคา","รายได้โดยประมาณ","รายได้จริง"]
[null,23,null,"บูธขนาดใหญ่ @",null,{"$f":"B19*E19","v":{"v":0,"d":"฿0.00"}},{"$f":"C19*E19","v":{"v":0,"d":"฿0.00"}}]
[null,354,null,"บูธขนาดกลาง @",null,{"$f":"B20*E20","v":{"v":0,"d":"฿0.00"}},{"$f":"C20*E20","v":{"v":0,"d":"฿0.00"}}]
[null,56,null,"บูธขนาดเล็ก @",null,{"$f":"B21*E21","v":{"v":0,"d":"฿0.00"}},{"$f":"C21*E21","v":{"v":0,"d":"฿0.00"}}]
[null,"ผลรวม",{"$nulls":3},{"$f":"SUBTOTAL(109,ExhibitorsAndVendors[รายได้โดยประมาณ])","v":{"v":0,"d":"฿0.00"}},{"$f":"SUBTOTAL(109,ExhibitorsAndVendors[รายได้จริง])","v":{"v":0,"d":"฿0.00"}}]
["ป้ายชื่อยอดขายสินค้าอยู่ในเซลล์ด้านขวา","ยอดขายสินค้า"]
["ใส่จำนวนสินค้าที่ขายโดยประมาณและจำนวนจริง และราคาสินค้าในตารางโดยเริ่มจากเซลล์ด้านขวา รายได้โดยประมาณและรายได้จริงจะคำนวณโดยอัตโนมัติ","จำนวนโดยประมาณ","จำนวนจริง","ประเภท","ราคา","รายได้โดยประมาณ","รายได้จริง"]
[{"$nulls":3},"สินค้า @",null,{"$f":"B25*E25","v":{"v":0,"d":"฿0.00"}},{"$f":"C25*E25","v":{"v":0,"d":"฿0.00"}}]
[null,123,null,"สินค้า @",null,{"$f":"B26*E26","v":{"v":0,"d":"฿0.00"}},{"$f":"C26*E26","v":{"v":0,"d":"฿0.00"}}]
[{"$nulls":3},"สินค้า @",null,{"$f":"B27*E27","v":{"v":0,"d":"฿0.00"}},{"$f":"C27*E27","v":{"v":0,"d":"฿0.00"}}]
[null,13,null,"สินค้า @",null,{"$f":"B28*E28","v":{"v":0,"d":"฿0.00"}},{"$f":"C28*E28","v":{"v":0,"d":"฿0.00"}}]
[null,"ผลรวม",{"$nulls":3},{"$f":"SUBTOTAL(109,SaleOfItems[รายได้โดยประมาณ])","v":{"v":0,"d":"฿0.00"}},{"$f":"SUBTOTAL(109,SaleOfItems[รายได้จริง])","v":{"v":0,"d":"฿0.00"}}]

{"sheet":"สรุปกำไร - ขาดทุน","index":3,"n_rows":8,"n_cols":7,"rows_kept":8,"merged":[[0,1,0,3],[2,4,11,6]]}
["สรุปและแผนภูมิของกำไรขาดทุนที่แสดงรายได้และค่าใช้จ่ายทั้งหมดจะอัปเดตโดยอัตโนมัติในเวิร์กชีตนี้ ชื่อเรื่องของเวิร์กชีตนี้จะอัปเดตในเซลล์ด้านขวาโดยอัตโนมัติ ชื่อเรื่องอยู่ในเซลล์ G1 และ G2 คำแนะนำที่เป็นประโยชน์เกี่ยวกับวิธีใช้เวิร์กชีตนี้อยู่ในเซลล์ในคอลัมน์นี้ คำแนะนำถัดไปอยู่ในเซลล์ A3",{"$f":"รายจ่าย!B1","v":"งบประมาณจัดกิจกรรมสำหรับชื่อกิจกรรม"},{"$nulls":4},"กำไร"]
[{"$nulls":6},"สรุปขาดทุน"]
["แผนภูมิแท่งที่เปรียบเทียบรายได้และค่าใช้จ่ายโดยประมาณและรายได้และค่าใช้จ่ายจริงอยู่ในเซลล์ E3",{"$nulls":3},"แผนภูมิแท่งแสดงการเปรียบเทียบรายได้และค่าใช้จ่ายโดยประมาณและรายได้และค่าใช้จ่ายจริงอยู่ในเซลล์นี้"]
["ตารางสรุปที่เริ่มต้นจากเซลล์ด้านขวาจะอัปเดตโดยอัตโนมัติ คำแนะนำถัดไปอยู่ในเซลล์ A8"," ผลรวม","โดยประมาณ","ตามที่เป็นจริง"]
[null,"รายได้ทั้งหมด",{"$f":"รายได้!F4","v":{"v":1936,"d":"฿1,936.00"}},{"$f":"รายได้!G4","v":{"v":1831,"d":"฿1,831.00"}}]
[null,"ค่าใช้จ่ายทั้งหมด",{"$f":"รายจ่าย!G4","v":{"v":882,"d":"฿882.00"}},{"$f":"รายจ่าย!H4","v":{"v":333,"d":"฿333.00"}}]
[]
["ผลกำไรหรือขาดทุนโดยประมาณจะถูกคำนวณโดยอัตโนมัติในเซลล์ C8 และผลกำไรหรือขาดทุนตามจริงในเซลล์ D8","ผลกำไร\n(หรือขาดทุน)",{"$f":"C5-C6","v":{"v":1054,"d":"฿1,054.00"}},{"$f":"D5-D6","v":{"v":1498,"d":"฿1,498.00"}}]